bitfinex-derivatives/quotes_BTCF0:USTF0_20251120
["timestamp","ask_amount","ask_price","bid_price","bid_amount"]
[1763655823731,0.00073267,88579.0,88578.0,0.00219803]
[1763655824723,0.00073267,88579.0,88570.0,0.00016939]
[1763655824724,0.36153267,88579.0,88570.0,0.00016939]
[1763655824925,0.3608,88571.0,88570.0,0.00016939]
[1763655825235,0.36153267,88571.0,88546.0,0.3608]
[1763655825436,0.3608,88563.0,88547.0,0.00219803]
[1763655825633,0.00073267,88548.0,88547.0,0.00219803]
[1763655826835,0.00016939,88556.0,88553.0,0.0113053]
[1763655827029,0.3608,88588.0,88555.0,0.36299803]
[1763655827228,0.00073267,88576.0,88564.0,0.3608]
[1763655827539,0.00073267,88576.0,88569.0,0.3608]
[1763655827737,0.00073267,88576.0,88575.0,0.00219803]
[1763655827939,0.3608,88605.0,88576.0,0.0113024]
[1763655828237,0.0099999,88630.0,88576.0,0.0113024]
[1763655828238,0.01226597,88642.0,88600.0,0.16384]
[1763655828432,0.00073267,88633.0,88601.0,0.00219803]
[1763655828635,0.00073267,88633.0,88612.0,0.00016929]
[1763655828834,0.00073267,88633.0,88632.0,0.00219803]
[1763655829133,0.00073267,88633.0,88612.0,0.00016929]
[1763655829335,0.00016878,88632.0,88613.0,0.00219803]
[1763655829530,0.00073267,88631.0,88613.0,0.00219803]
[1763655829832,0.00073267,88631.0,88621.0,0.3608]
[1763655830038,0.00073267,88631.0,88630.0,0.00219803]
[1763655832933,0.40073267,88631.0,88612.0,0.00016929]
[1763655833129,0.3608,88628.0,88613.0,0.00219803]
[1763655833329,0.00073267,88614.0,88613.0,0.00219803]
[1763655833632,0.00073267,88614.0,88612.0,0.00016929]
[1763655833944,0.00073267,88614.0,88612.0,0.00236732]
[1763655834637,0.00073267,88614.0,88598.0,0.3608]
[1763655834830,0.3608,88606.0,88598.0,0.36299803]
[1763655835030,0.00073267,88599.0,88598.0,0.36299803]
[1763655835538,0.00073267,88599.0,88598.0,0.00219803]
[1763655837838,0.00073267,88599.0,88590.0,0.00016929]
[1763655837839,0.36153267,88599.0,88590.0,0.00016929]
[1763655838036,0.36153267,88599.0,88590.0,0.00236732]
[1763655838436,0.00073267,88599.0,88590.0,0.00236732]
[1763655840038,0.00073267,88599.0,88590.0,0.00016929]
[1763655840238,0.3608,88593.0,88569.0,0.3608]
[1763655840439,0.00073267,88570.0,88569.0,0.00219803]
[1763655841542,0.00073267,88570.0,88561.0,0.00016929]
[1763655841745,0.3608,88567.0,88562.0,0.00219803]
[1763655841936,0.00073267,88563.0,88562.0,0.00219803]
[1763655842132,0.00016929,88578.0,88562.0,0.00219803]
[1763655842435,0.00073267,88577.0,88569.0,0.3608]
[1763655842642,0.3608,88571.0,88561.0,0.00016929]
[1763655842837,0.00073267,88562.0,88531.0,0.3608]
[1763655843138,0.50965823,88550.0,88531.0,0.00219803]
[1763655843338,0.00073267,88532.0,88531.0,0.00219803]
[1763655843540,0.00073267,88532.0,88488.0,0.16384]
[1763655843733,0.00073267,88532.0,88523.0,0.00219803]
[1763655843933,0.3608,88531.0,88523.0,0.00219803]
[1763655844137,0.00073267,88524.0,88518.0,0.0001694]
[1763655844344,0.3608,88523.0,88522.0,0.00229325]
[1763655844546,0.36153267,88523.0,88522.0,0.00229325]
[1763655844741,0.36153267,88523.0,88522.0,9.522e-05]
[1763655845156,0.0001694,88536.0,88522.0,0.40229325]
[1763655845440,0.0001694,88536.0,88531.0,0.3608]
[1763655845639,0.0001694,88536.0,88535.0,0.00219803]
[1763655845842,0.1613794,88536.0,88522.0,9.522e-05]
[1763655846043,0.1613794,88536.0,88522.0,0.00229325]
[1763655846240,0.3608,88531.0,88522.0,0.00229325]
[1763655846639,0.3608,88523.0,88522.0,9.522e-05]
[1763655847040,0.3608,88531.0,88522.0,9.522e-05]
[1763655847245,0.3608,88531.0,88523.0,0.00219803]
[1763655848434,0.08860911,88531.0,88524.0,0.3608]
[1763655848636,0.11364,88535.0,88525.0,0.00219803]
[1763655848846,0.52165,88526.0,88525.0,0.00219803]
[1763655849146,0.52165,88526.0,88522.0,9.522e-05]
[1763655849147,0.52165,88523.0,88522.0,3.25e-06]
[1763655849349,0.52384803,88523.0,88522.0,3.25e-06]
[1763655849851,0.0001694,88536.0,88522.0,0.40073592]
[1763655850048,0.0001694,88536.0,88535.0,1.2348]
[1763655850242,0.5241094,88536.0,88535.0,0.36153267]
[1763655850440,0.68286,88528.0,88527.0,0.3608]
[1763655850643,0.00229,88528.0,88527.0,0.00073267]
[1763655850843,0.00229,88528.0,88527.0,0.36153267]
[1763655851342,0.68515,88528.0,88527.0,0.36153267]
[1763655851648,0.00229,88528.0,88527.0,0.36153267]
[1763655852151,9.197e-05,88528.0,88527.0,0.87473267]
[1763655852345,0.0001694,88536.0,88535.0,0.5132]
[1763655852540,0.0001694,88536.0,88535.0,0.87473267]
[1763655852754,0.3608,88579.0,88535.0,0.77284037]
[1763655853057,0.39916457,88587.0,88564.0,0.3608]
[1763655853058,0.00219803,88572.0,88564.0,0.3608]
[1763655853240,0.00219803,88572.0,88565.0,0.36153267]
[1763655853443,0.3608,88597.0,88565.0,0.36153267]
[1763655853654,0.00219803,88588.0,88582.0,0.3608]
[1763655853845,0.00219803,88588.0,88587.0,0.3608]
[1763655854043,0.0001694,88590.0,88587.0,0.37283367]
[1763655854348,0.11364,88624.0,88587.0,0.01203367]
[1763655854552,0.00219803,88615.0,88587.0,0.00073267]
[1763655855147,0.3608,88611.0,88592.0,0.3609693]
[1763655855446,0.3608,88603.0,88593.0,0.00073267]
[1763655855646,0.00219803,88602.0,88593.0,0.00073267]
[1763655856145,0.3608,88595.0,88581.0,0.3608]
[1763655856349,0.00219803,88582.0,88581.0,0.3608]
[1763655856546,0.00219803,88582.0,88581.0,0.36153267]
[1763655858953,0.52384803,88582.0,88581.0,0.36153267]
[1763655859143,0.52384803,88582.0,88581.0,0.3608]
[1763655859645,0.52384803,88582.0,88581.0,0.36153267]
[1763655860155,0.00219803,88582.0,88581.0,0.36153267]
[1763655860946,0.52384803,88582.0,88581.0,0.36153267]
[1763655861152,0.0001693,88590.0,88581.0,0.87473267]
[1763655861343,0.00236733,88590.0,88589.0,0.61887]
[1763655861545,0.0001693,88590.0,88589.0,0.87473267]
[1763655861751,0.3608,88623.0,88589.0,0.76153267]
[1763655861950,0.3608,88633.0,88632.0,0.5132]
[1763655862150,0.01225771,88648.0,88632.0,0.00219803]
[1763655862452,0.16121,88656.0,88632.0,0.00219803]
[1763655862750,0.0001693,88648.0,88632.0,0.00219803]
[1763655863147,0.0001693,88648.0,88643.0,0.3608]
[1763655863340,0.0001693,88648.0,88644.0,0.00219803]
[1763655863849,0.0001693,88648.0,88645.0,0.3608]
[1763655864046,0.0001693,88648.0,88645.0,0.36299803]
[1763655864848,0.0001693,88648.0,88645.0,0.3608]
[1763655865150,0.0001693,88648.0,88645.0,0.36299803]
[1763655865549,0.36328005,88646.0,88645.0,0.00073267]
[1763655865753,0.36328005,88646.0,88630.0,0.0001693]
[1763655865949,0.3608,88635.0,88630.0,0.0001693]
[1763655866146,0.00219803,88631.0,88607.0,0.3608]
[1763655866455,0.00219803,88631.0,88585.0,0.3608]
[1763655866456,0.7216,88615.0,88585.0,0.3608]
[1763655866643,0.3608,88601.0,88598.0,0.00073267]
[1763655866949,0.3608,88615.0,88598.0,0.00073267]
[1763655867146,0.00219803,88601.0,88598.0,0.00073267]
[1763655867340,0.00219803,88601.0,88599.0,0.0112995]
[1763655867541,0.0001693,88615.0,88611.0,0.0112979]
[1763655867743,0.3608,88645.0,88614.0,0.36153267]
[1763655867949,0.3608,88645.0,88633.0,0.3608]
[1763655868155,0.03836457,88684.0,88644.0,0.00073267]
[1763655868340,0.1134,88676.0,88644.0,0.00073267]
[1763655868544,0.1134,88676.0,88645.0,0.0112937]
[1763655868855,0.0001693,88654.0,88648.0,0.0112933]
[1763655869150,0.00219803,88675.0,88649.0,0.00073267]
[1763655869354,0.00219803,88675.0,88657.0,0.0112921]
[1763655869555,0.01214298,88689.0,88674.0,0.36153267]
[1763655869743,0.1,88700.0,88685.0,0.3608]
[1763655869943,0.1,88700.0,88685.0,0.36299803]
[1763655870147,0.00016819,88694.0,88691.0,0.0112877]
[1763655870347,0.03836457,88758.0,88699.0,0.00219803]
[1763655870651,0.06556,88761.0,88710.0,0.0112853]
[1763655870955,1.77e-06,88726.0,88725.0,0.00219803]
[1763655871443,0.06556,88761.0,88733.0,0.0112824]
[1763655871649,0.1134,88798.0,88743.0,0.0112811]
[1763655871846,0.01227925,88789.0,88765.0,0.00219803]
[1763655872042,0.09218231,88791.0,88765.0,0.00219803]
[1763655872246,0.01251089,88792.0,88765.0,0.00219803]
[1763655872549,0.34846369,88790.0,88765.0,0.00219803]
[1763655872943,0.15791,88764.0,88757.0,0.00016898]
[1763655873143,0.11332,88763.0,88700.0,0.34846369]
[1763655873357,0.11332,88763.0,88714.0,0.00219803]
[1763655874061,0.00016831,88747.0,88730.0,0.00016898]
[1763655874352,0.00016831,88747.0,88731.0,0.00219803]
[1763655874951,0.00016831,88747.0,88741.0,0.3608]
[1763655875164,0.00016831,88747.0,88746.0,0.36299803]
[1763655876852,0.00016831,88747.0,88746.0,0.00219803]
[1763655877053,0.36096831,88747.0,88746.0,0.00219803]
[1763655877253,0.76096831,88747.0,88730.0,0.00016898]
[1763655877559,0.3608,88738.0,88718.0,0.3608]
[1763655877755,0.3608,88722.0,88718.0,0.00219803]
[1763655878151,0.15791,88725.0,88718.0,0.00219803]
[1763655878348,0.3608,88722.0,88708.0,0.3608]
[1763655878654,0.3608,88722.0,88709.0,0.36096898]
[1763655878852,0.3608,88722.0,88713.0,0.00229489]
[1763655879361,0.15791,88725.0,88717.0,0.3608]
[1763655879660,0.15791,88725.0,88717.0,0.36299803]
[1763655879859,0.3608,88722.0,88713.0,9.686e-05]
[1763655880163,0.3608,88714.0,88709.0,0.00016898]
[1763655881062,0.3608,88714.0,88709.0,0.00236701]
[1763655881357,0.3608,88710.0,88690.0,0.3608]
[1763655881558,0.3608,88710.0,88681.0,0.3608]
[1763655881559,0.3608,88698.0,88681.0,0.3608]
[1763655881766,0.3608,88690.0,88682.0,0.00219803]
[1763655881960,8.569e-05,88689.0,88682.0,0.00219803]
[1763655882152,8.569e-05,88689.0,88683.0,0.3608]
[1763655882353,8.569e-05,88689.0,88688.0,0.00219803]
[1763655882549,8.569e-05,88689.0,88688.0,0.01348623]
[1763655882754,0.11304,88721.0,88688.0,0.00219803]
[1763655882958,0.3608,88716.0,88703.0,0.3608]
[1763655883157,0.11304,88727.0,88712.0,0.3608]
[1763655883360,0.11304,88727.0,88724.0,0.00219803]
[1763655883960,0.3608,88726.0,88724.0,0.00219803]
[1763655884259,0.11304,88727.0,88724.0,0.00219803]
[1763655884459,0.00016909,88733.0,88724.0,0.01348153]
[1763655884664,0.00016909,88733.0,88732.0,0.3608]
[1763655884875,0.3608,88752.0,88732.0,0.36299803]
[1763655885160,0.11304,88768.0,88750.0,0.3608]
[1763655885355,0.11304,88768.0,88763.0,0.00219803]
[1763655885551,0.3608,88778.0,88763.0,0.00219803]
[1763655885865,0.3608,88789.0,88763.0,0.00219803]
[1763655886057,0.0001681,88773.0,88763.0,0.00219803]
[1763655887767,0.3608,88770.0,88763.0,0.00219803]
[1763655888263,0.0001681,88773.0,88764.0,0.3608]
[1763655888566,0.0001681,88773.0,88764.0,0.00219803]
[1763655890176,0.3608,88770.0,88756.0,0.00016899]
[1763655890358,0.3608,88770.0,88764.0,0.00219803]
[1763655890561,0.0001681,88773.0,88764.0,0.00219803]
[1763655891563,0.3608,88772.0,88764.0,0.00219803]
[1763655894867,0.51836,88765.0,88764.0,0.00219803]
[1763655895264,0.7216,88772.0,88764.0,0.00219803]
[1763655895970,0.26314,88765.0,88764.0,0.00219803]
[1763655896366,0.3608,88772.0,88764.0,0.00219803]
[1763655896965,0.26314,88765.0,88764.0,0.00219803]
[1763655897164,0.3608,88772.0,88764.0,0.00219803]
[1763655897566,0.51836,88765.0,88764.0,0.00219803]
[1763655897765,0.3608,88772.0,88756.0,0.00016899]
[1763655897766,0.26314,88757.0,88756.0,0.00016899]
[1763655897970,0.51836,88757.0,88756.0,0.00016899]
[1763655898167,0.51836,88742.0,88741.0,0.3608]
[1763655898364,0.51836,88742.0,88741.0,0.33085966]
[1763655898560,0.51836,88742.0,88732.0,0.3608]
[1763655898769,0.51836,88734.0,88733.0,0.00219803]
[1763655898975,0.51836,88734.0,88723.0,0.3608]
[1763655898976,0.51836,88734.0,88724.0,0.00219803]
[1763655899270,0.0235308,88733.0,88724.0,0.00219803]
[1763655899473,0.00016899,88738.0,88731.0,0.3608]
[1763655899663,0.00016899,88738.0,88737.0,0.00219803]
[1763655899864,0.02370263,88738.0,88737.0,0.00219803]
[1763655900161,0.00016899,88738.0,88737.0,0.00219803]
[1763655900471,0.00016899,88738.0,88737.0,0.47531803]
[1763655900671,0.03836457,88770.0,88765.0,0.47312]
[1763655900970,0.07705387,88796.0,88768.0,0.47312]
[1763655901175,0.00028151,88806.0,88793.0,0.00219803]
[1763655901373,0.3455643,88850.0,88793.0,0.00219803]
[1763655901568,0.3455643,88850.0,88813.0,0.00016889]
[1763655901569,0.15807777,88830.0,88813.0,0.00016889]
[1763655901767,0.15807777,88830.0,88814.0,0.00219803]
[1763655901972,0.15807777,88830.0,88813.0,0.00016889]
[1763655902174,0.15807777,88830.0,88751.0,0.0564006]
[1763655902470,0.15791,88830.0,88773.0,0.00219803]
[1763655902670,0.57442399,88830.0,88773.0,0.00219803]
[1763655902871,0.0099999,88820.0,88773.0,0.00219803]
[1763655903268,0.57442399,88830.0,88788.0,0.00016889]
[1763655903269,0.15942,88800.0,88788.0,0.00016889]
[1763655903467,0.11296,88799.0,88773.0,0.00219803]
[1763655903673,0.11296,88799.0,88752.0,0.01128]
[1763655903968,0.11296,88799.0,88721.0,0.0112839]
[1763655903969,0.20230259,88799.0,88753.0,0.00219803]
[1763655904471,0.20230259,88799.0,88757.0,0.3608]
[1763655904472,0.3608,88773.0,88757.0,0.3608]
[1763655904676,0.3608,88773.0,88767.0,0.00016898]
[1763655905263,0.3608,88769.0,88767.0,0.00016898]
[1763655905576,0.15942,88775.0,88768.0,0.00219803]
[1763655905766,0.15942,88775.0,88774.0,0.3608]
[1763655905971,0.15942,88775.0,88767.0,0.00016898]
[1763655905972,0.3608,88779.0,88767.0,0.00016898]
[1763655906166,0.3608,88779.0,88720.0,0.42651399]
[1763655906167,0.15942,88750.0,88747.0,0.3608]
[1763655906372,0.15942,88750.0,88721.0,0.00219803]
[1763655906373,0.11292,88749.0,88721.0,0.00219803]
[1763655906976,0.20372942,88749.0,88721.0,0.00219803]
[1763655907171,0.15942,88725.0,88689.0,0.0112881]
[1763655907372,0.15942,88725.0,88663.0,0.0112914]
[1763655907567,0.15942,88725.0,88713.0,0.00016898]
[1763655907777,0.20372942,88749.0,88713.0,0.00219803]
[1763655907967,0.0001691,88728.0,88724.0,0.0112836]
[1763655908271,0.0001691,88728.0,88710.0,0.0001691]
[1763655908272,0.41651399,88790.0,88725.0,0.00219803]
[1763655908466,0.04484,88774.0,88725.0,0.00219803]
[1763655909373,0.0001691,88758.0,88741.0,0.0001691]
[1763655909673,0.0001691,88758.0,88741.0,0.00236713]
[1763655910567,0.15942,88750.0,88741.0,0.00236713]
[1763655910771,0.15942,88750.0,88741.0,0.0001691]
[1763655910967,0.15942,88750.0,88714.0,0.0112849]
[1763655911167,0.15942,88750.0,88715.0,0.00219803]
[1763655911375,0.3608,88742.0,88728.0,0.3608]
[1763655911578,0.3608,88731.0,88716.0,0.3608]
[1763655911875,0.3608,88731.0,88717.0,0.00219803]
[1763655912078,0.15942,88728.0,88717.0,0.00219803]
[1763655912579,0.15942,88728.0,88724.0,0.3608]
[1763655912768,0.000169,88732.0,88731.0,0.0112827]
[1763655912967,0.3608,88756.0,88731.0,0.0112827]
[1763655912968,0.3608,88756.0,88731.0,0.36299803]
[1763655913169,0.3608,88773.0,88731.0,0.36299803]
[1763655913170,0.3608,88773.0,88760.0,0.011279]
[1763655913382,0.3608,88780.0,88772.0,0.00219803]
[1763655913672,0.3608,88780.0,88720.0,0.0212841]
[1763655913673,0.11292,88785.0,88717.0,0.0112844]
[1763655913879,0.000169,88755.0,88737.0,0.000169]
[1763655914076,0.000169,88755.0,88738.0,0.00219803]
[1763655914580,0.000169,88755.0,88749.0,0.3608]
[1763655914779,0.000169,88755.0,88754.0,0.00219803]
[1763655915081,0.11296,88781.0,88754.0,0.00219803]
[1763655915373,0.15942,88800.0,88754.0,0.00219803]
[1763655915374,0.3608,88794.0,88767.0,0.7216]
[1763655915579,0.3608,88794.0,88783.0,0.3608]
[1763655915784,0.3608,88794.0,88784.0,0.00219803]
[1763655916170,0.3608,88786.0,88780.0,0.000169]
[1763655916365,0.3608,88784.0,88751.0,0.3608]
[1763655916575,0.3608,88784.0,88716.0,0.0596917]
[1763655916576,0.15942,88750.0,88726.0,0.3608]
[1763655916781,0.11292,88749.0,88711.0,0.00219803]
[1763655917369,0.11292,88749.0,88721.0,0.000169]
[1763655917370,0.15942,88725.0,88721.0,0.000169]
[1763655917570,0.15942,88700.0,88660.0,0.01]
[1763655917770,0.068,88699.0,88680.0,0.00219803]
[1763655917978,0.15942,88725.0,88680.0,0.00219803]
[1763655918178,0.07723368,88748.0,88680.0,0.00219803]
[1763655918479,0.00016911,88723.0,88705.0,0.00016911]
[1763655918778,0.00010109,88722.0,88706.0,0.00219803]
[1763655918968,0.15952109,88722.0,88706.0,0.00219803]
[1763655919574,0.3608,88707.0,88706.0,0.00219803]
[1763655919781,0.36090109,88707.0,88706.0,0.00219803]
[1763655920077,0.00010109,88707.0,88706.0,0.00219803]
[1763655921674,0.00010109,88707.0,88705.0,0.00016911]
[1763655921870,0.3608,88706.0,88680.0,0.3608]
[1763655922180,0.3608,88691.0,88681.0,0.00219803]
[1763655922380,0.00010109,88690.0,88681.0,0.00219803]
[1763655923070,0.00010109,88690.0,88682.0,0.011289]
[1763655923270,0.00010109,88690.0,88689.0,0.00219803]
[1763655924478,0.00010109,88690.0,88689.0,0.36299803]
[1763655924681,0.00016911,88694.0,88690.0,0.0112879]
[1763655924879,0.3608,88727.0,88726.0,0.0112834]
[1763655925082,0.11296,88766.0,88727.0,0.0112832]
[1763655925285,0.11296,88766.0,88714.0,0.0112849]
[1763655925286,0.11296,88766.0,88738.0,0.0112817]
[1763655925479,0.11296,88766.0,88728.0,0.00219803]
[1763655925480,0.11296,88766.0,88739.0,0.00219803]
[1763655925676,0.11296,88766.0,88709.0,0.0112854]
[1763655925984,0.15942,88738.0,88710.0,0.00219803]
[1763655926384,0.15942,88738.0,88662.0,1.5]
[1763655926590,0.21734515,88738.0,88667.0,0.0112908]
[1763655926892,0.05792515,88735.0,88684.0,0.0112887]
[1763655927185,0.15942,88712.0,88701.0,0.00016911]
[1763655927397,0.15942,88712.0,88702.0,0.00219803]
[1763655927776,0.15942,88712.0,88701.0,0.00016911]
[1763655927987,0.00016911,88718.0,88702.0,0.00219803]
[1763655928494,0.08956731,88755.0,88728.0,0.011283]
[1763655928787,0.08956731,88755.0,88701.0,0.00016911]
[1763655928788,0.07896,88762.0,88730.0,0.0112828]
[1763655928988,0.07896,88762.0,88731.0,0.00219803]
[1763655929191,0.10492,88786.0,88731.0,0.00219803]
[1763655929583,0.00016901,88762.0,88744.0,0.00016901]
[1763655929784,0.00016901,88762.0,88745.0,0.00219803]
[1763655930285,0.00016901,88762.0,88750.0,0.3608]
[1763655930480,0.00016901,88762.0,88751.0,0.00219803]
[1763655930888,0.00016901,88762.0,88758.0,0.3608]
[1763655931080,0.00016901,88762.0,88761.0,0.00219803]
[1763655931398,0.05792515,88802.0,88761.0,0.00219803]
[1763655931399,0.11296,88791.0,88761.0,0.00219803]
[1763655931888,0.15506,88775.0,88735.0,0.03017091]
[1763655932089,0.15506,88775.0,88736.0,0.00219803]
[1763655932485,0.00016901,88764.0,88747.0,0.00016901]
[1763655932691,0.00016901,88764.0,88748.0,0.00219803]
[1763655933091,0.00016901,88764.0,88748.0,0.01347853]
[1763655933282,0.00016901,88764.0,88757.0,0.0112794]
[1763655933485,0.00016901,88764.0,88763.0,0.00219803]
[1763655934184,0.11292,88799.0,88763.0,0.40219803]
[1763655934382,0.03860508,88820.0,88769.0,0.0563894]
[1763655934581,0.03860508,88838.0,88800.0,0.0112738]
[1763655934788,0.03860508,88846.0,88801.0,0.00219803]
[1763655934986,0.03860508,88851.0,88805.0,0.0112733]
[1763655935201,0.08428,88855.0,88781.0,0.0112763]
[1763655935202,0.00016891,88832.0,88815.0,0.00016891]
[1763655935497,0.00016891,88832.0,88816.0,0.00219803]
[1763655935684,0.00016891,88832.0,88825.0,0.0112707]
[1763655935890,0.08428,88855.0,88831.0,0.01346803]
[1763655936197,0.08428,88855.0,88831.0,0.00219803]
[1763655936692,0.00856612,88868.0,88840.0,0.0112688]
[1763655936896,0.00016726,88863.0,88845.0,0.00016882]
[1763655937099,0.00016726,88863.0,88846.0,0.00219803]
[1763655938497,0.00016726,88863.0,88845.0,0.00016882]
[1763655938689,0.00016726,88863.0,88790.0,0.49008399]
[1763655938996,0.00856612,88868.0,88835.0,0.0112694]
[1763655939195,0.00856612,88868.0,88836.0,0.00219803]
[1763655939501,0.00856612,88868.0,88853.0,0.0112671]
[1763655939798,0.16532,88900.0,88854.0,0.00219803]
[1763655940005,0.1786466,88925.0,88871.0,0.0112649]
[1763655940299,0.1786466,88925.0,88852.0,0.00016882]
[1763655940300,0.16532,88875.0,88872.0,0.00219803]
[1763655940686,0.16532,88875.0,88812.0,0.0112723]
[1763655940687,0.16532,88875.0,88840.0,0.0112688]
[1763655940891,0.00016726,88866.0,88849.0,0.00016882]
[1763655941200,0.00016726,88866.0,88861.0,0.0112661]
[1763655941390,0.00016726,88866.0,88865.0,0.00219803]
[1763655942598,0.16532,88900.0,88868.0,0.0112653]
[1763655942789,0.16532,88900.0,88869.0,0.00219803]
[1763655942998,0.16532,88900.0,88870.0,0.0112649]
[1763655943296,0.16532,88900.0,88871.0,0.00219803]
[1763655943702,0.16532,88900.0,88884.0,0.3608]
[1763655943894,0.16532,88900.0,88885.0,0.00219803]
[1763655944099,0.16532,88900.0,88893.0,0.3608]
[1763655944298,0.16532,88900.0,88894.0,0.00219803]
[1763655944492,0.06956,88909.0,88894.0,0.36299803]
[1763655944699,0.52140126,88925.0,88905.0,0.3608]
[1763655944991,0.00028101,88966.0,88912.0,0.0112596]
[1763655945195,0.01323453,88947.0,88925.0,0.00219803]
[1763655945790,0.00028101,88966.0,88925.0,0.00219803]
[1763655945996,0.01317552,88954.0,88925.0,0.00219803]
[1763655947297,0.52612,88946.0,88925.0,0.36299803]
[1763655947497,0.16532,88946.0,88925.0,0.36299803]
[1763655948700,0.3608,88962.0,88925.0,0.36299803]
[1763655948901,0.3608,88981.0,88955.0,0.0112543]
[1763655949202,0.3608,88981.0,88928.0,0.0112577]
[1763655949203,0.01336188,88976.0,88961.0,0.3608]
[1763655949394,0.3608,88973.0,88961.0,0.3608]
[1763655949594,0.3608,88962.0,88940.0,0.3608]
[1763655949800,0.3608,88944.0,88930.0,0.3608]
[1763655950103,0.511006,88950.0,88879.0,0.0112639]
[1763655950303,0.345686,88920.0,88880.0,0.00219803]
[1763655950603,0.00016826,88909.0,88891.0,0.00016871]
[1763655950808,0.345686,88901.0,88869.0,0.0112652]
[1763655951007,0.345686,88901.0,88874.0,0.0112645]
[1763655951211,0.345686,88901.0,88875.0,0.00219803]
[1763655951599,0.345686,88901.0,88886.0,0.0112629]
[1763655951907,0.345686,88901.0,88850.0,0.00012295]
[1763655951908,0.16532,88894.0,88885.0,0.00016871]
[1763655952098,0.16532,88894.0,88857.0,0.00219803]
[1763655952713,0.16532,88894.0,88867.0,0.0112653]
[1763655952911,0.16532,88894.0,88871.0,0.0112648]
[1763655953209,0.00016871,88891.0,88874.0,0.00016871]
[1763655953410,0.00016871,88891.0,88875.0,0.00219803]
[1763655953798,0.00016871,88891.0,88881.0,0.0112637]
[1763655954109,0.00016871,88891.0,88890.0,0.01346053]
[1763655954504,0.10432,88924.0,88902.0,0.011261]
[1763655954709,0.10432,88924.0,88903.0,0.00219803]
[1763655955300,0.3608,88909.0,88903.0,0.00219803]
[1763655956302,0.00016871,88915.0,88903.0,0.00219803]
[1763655956303,0.00016871,88915.0,88914.0,0.0112595]
[1763655956508,0.11272,88959.0,88914.0,0.00219803]
[1763655956709,0.345686,88950.0,88914.0,0.00219803]
[1763655957310,0.3608,88922.0,88914.0,0.00219803]
[1763655960708,0.3608,88922.0,88919.0,0.0112588]
[1763655960915,0.3608,88937.0,88925.0,0.09802]
[1763655961114,0.03860508,88985.0,88947.0,0.0112553]
[1763655961317,0.3608,88959.0,88956.0,0.0112541]
[1763655961623,0.00028088,89006.0,88957.0,0.00219803]
[1763655961804,0.02330028,88997.0,88957.0,0.00219803]
[1763655962004,0.02330028,88996.0,88930.0,0.0112574]
[1763655962211,0.345686,88980.0,88931.0,0.00219803]
[1763655962514,0.345686,88960.0,88914.0,8.122e-05]
[1763655962814,0.345686,88960.0,88915.0,0.00219803]
[1763655962815,0.03860508,88958.0,88915.0,0.00219803]
[1763655963115,0.00016828,88945.0,88928.0,0.00016861]
[1763655963310,0.02330028,88944.0,88928.0,0.00016861]
[1763655963514,0.00016828,88945.0,88928.0,0.00236664]
[1763655964411,0.02342778,88944.0,88928.0,0.00236664]
[1763655964611,0.02342778,88943.0,88929.0,0.0112575]
[1763655964912,0.00016828,88945.0,88930.0,0.00219803]
[1763655965111,0.00016828,88945.0,88928.0,0.00016861]
[1763655965112,0.0234282,88944.0,88928.0,0.00016861]
[1763655965316,0.0234282,88943.0,88929.0,0.00219803]
[1763655965513,0.00016828,88945.0,88929.0,0.00219803]
[1763655965910,0.02344873,88944.0,88929.0,0.00219803]
[1763655966106,0.02344873,88943.0,88929.0,0.00219803]
[1763655966311,0.02344873,88942.0,88929.0,0.00219803]
[1763655966511,0.02344873,88941.0,88928.0,0.00016861]
[1763655966712,0.03860508,88941.0,88914.0,8.122e-05]
[1763655967008,0.00016828,88945.0,88914.0,8.122e-05]
[1763655967009,0.03860508,88939.0,88914.0,8.122e-05]
[1763655967210,0.345686,88924.0,88876.0,0.0112643]
[1763655967423,0.15463,88900.0,88876.0,0.00219803]
[1763655967612,0.02346192,88899.0,88876.0,0.00219803]
[1763655967812,0.15463,88900.0,88879.0,0.00016871]
[1763655967813,0.00016871,88897.0,88879.0,0.00016871]
[1763655968018,0.00016871,88897.0,88896.0,0.00219803]
[1763655968320,0.03860508,88931.0,88907.0,0.0112603]
[1763655968523,0.02348006,88930.0,88908.0,0.00219803]
[1763655968729,0.03860508,88949.0,88908.0,0.00219803]
[1763655968918,0.03860508,88936.0,88908.0,0.00219803]
[1763655969122,0.03860508,88934.0,88908.0,0.00219803]
[1763655969319,0.03860508,88928.0,88912.0,0.00016871]
[1763655969512,0.02348035,88927.0,88913.0,0.00219803]
[1763655969713,0.15463,88925.0,88912.0,0.00016871]
[1763655969919,0.03860508,88922.0,88870.0,0.011265]
[1763655970121,0.03860508,88911.0,88876.0,0.00219803]
[1763655970414,0.03860508,88908.0,88876.0,0.00219803]
[1763655970721,0.03860508,88899.0,88876.0,0.00219803]
[1763655970920,0.03860508,88895.0,88879.0,0.00016871]
[1763655971120,0.03860508,88895.0,88880.0,0.00219803]
[1763655971426,0.02348035,88894.0,88880.0,0.00219803]
[1763655971623,0.02348035,88893.0,88880.0,0.00219803]
[1763655971825,0.345686,88890.0,88820.0,0.345686]
[1763655972120,0.03860508,88884.0,88852.0,0.00219803]
[1763655972324,0.03860508,88883.0,88852.0,0.00219803]
[1763655972628,0.3608,88863.0,88852.0,0.00219803]
[1763655972931,0.00016881,88866.0,88859.0,0.3608]
[1763655973120,0.00016881,88866.0,88861.0,0.0112662]
[1763655973422,0.3608,88891.0,88868.0,0.15939]
[1763655973624,0.3608,88891.0,88869.0,0.00219803]
[1763655973625,0.02345288,88890.0,88869.0,0.00219803]
[1763655973824,0.3608,88879.0,88869.0,0.00219803]
[1763655974025,0.3608,88879.0,88851.0,0.3608]
[1763655974026,0.3608,88870.0,88851.0,0.3608]
[1763655974223,0.02345288,88869.0,88852.0,0.00219803]
[1763655974418,0.3608,88858.0,88852.0,0.00236684]
[1763655974620,0.02345288,88868.0,88839.0,0.3608]
[1763655974621,0.3608,88856.0,88839.0,0.3608]
[1763655974928,0.02344188,88855.0,88847.0,0.00227962]
[1763655975118,0.3608,88848.0,88820.0,0.3608]
[1763655975318,0.15463,88825.0,88801.0,0.3608]
[1763655975627,0.15463,88825.0,88801.0,0.00219803]
[1763655975628,0.02341475,88824.0,88801.0,0.00219803]
[1763655975821,0.345686,88820.0,88804.0,0.00016891]
[1763655976025,0.3608,88805.0,88785.0,0.3608]
[1763655976230,0.03860508,88818.0,88785.0,0.00219803]
[1763655976522,0.02335818,88817.0,88785.0,0.00219803]
[1763655976730,0.02335818,88816.0,88785.0,0.00219803]
[1763655976920,0.3608,88800.0,88785.0,0.00219803]
[1763655977127,0.3608,88788.0,88785.0,0.00219803]